[Event "MCCT Chessable Masters 2022"]
[Site "Online"]
[Date "2022.05.16"]
[Round "15.3"]
[White "Van Foreest, Jorden"]
[Black "Anton Guijarro, David"]
[Result "1/2-1/2"]
[ECO "C54"]
[WhiteElo "2715"]
[BlackElo "2691"]
[Annotator "TA"]
[PlyCount "162"]
[EventDate "2022.05.19"]
[EventType "tourn"]
[EventCountry "NET"]
[SourceTitle "playchess.com"]
[Source "ChessBase"]
[SourceQuality "1"]
[TimeControl "900+10"]

{[%evp 12,162,29,6,13,10,21,21,18,18,11,17,14,0,0,0,0,0,7,0,0,0,0,0,27,29,41,49,76,37,39,0,0,0,14,27,14,12,17,11,39,0,18,0,0,0,0,0,0,0,0,-37,-26,-33,25,25,56,54,85,85,89,77,96,63,84,81,114,85,106,106,159,126,109,122,116,124,125,150,138,141,147,125,148,166,167,162,135,0,0,0,0,0,0,0,0,0,0,0,0,0,0,0,0,0,0,0,0,0,12839,0,0,0,0,0,0,0,0,0,0,0,0,0,0,0,0,0,0,0,0,0,0,0,0,0,0,0,0,0,0,0,0,0,0,0,0,0,0,0,0,0,0,0,0]} 1. e4 {[%emt 0:00:00]} e5 {[%emt 0:00:00]} 2. Nf3 {[%emt 0:00:02]} Nc6 {[%emt 0:00:02]} 3. Bc4 {[%emt 0:00:00]} Bc5 {[%emt 0:00:03]} 4. c3 {[%emt 0:00:03]} Nf6 {[%emt 0:00:02]} 5. d3 {[%emt 0:00:01]} d6 {[%emt 0:00:02]} 6. O-O {[%emt 0:00:03]} a5 {[%emt 0:00:04]} 7. Re1 {[%emt 0:00:14]} O-O {[%emt 0:00:06]} 8. h3 {[%emt 0:00:28]} Ba7 {[%emt 0:00:10]} 9. a4 {[%emt 0:00:35]} h6 {[%emt 0:01:23]} 10. Nbd2 {[%emt 0:00:20]} Be6 {[%emt 0:00:16]} 11. Bxe6 {[%emt 0:00:03]} fxe6 {[%emt 0:00:01]} 12. Nf1 {[%emt 0:00:07]} Nh5 {[%emt 0:00:38]} 13. Be3 {[%emt 0:00:02]} Qe8 {[%emt 0:00:35]} 14. Bxa7 {[%emt 0:00:20]} Rxa7 {[%emt 0:00:05]} 15. Re3 {[%emt 0:00:04]} Nf4 {[%emt 0:03:22]} 16. h4 {[%emt 0:00:26]} Qg6 {[%emt 0:00:44]} 17. g3 {[%emt 0:00:04]} d5 {[%emt 0:00:48]} 18. N1h2 {[%emt 0:01:12]} d4 {[%emt 0:00:22]} 19. Re1 {[%emt 0:00:32]} Nh5 {[%emt 0:03:09]} 20. Kh1 {[%emt 0:00:06]} (20. b4 {feels hotter.} dxc3 21. b5 c2 22. Qxc2 Nd4 23. Nxd4 exd4 24. Re2) 20... Nf6 {[%emt 0:00:12]} 21. Ng1 {[%emt 0:00:18]} (21. Kg2 {keeps more tension.} Nd7 22. Qb3 Qf6 23. Rac1) 21... Nd7 {[%emt 0:00:31]} 22. Ngf3 {[%emt 0:03:52]} Nc5 {[%emt 0:00:28]} 23. Qc2 {[%emt 0:00:44]} b6 {[%emt 0:00:17]} 24. Rab1 {[%emt 0:00:09]} Nd7 {[%emt 0:03:11]} 25. Qb3 {[%emt 0:00:33]} Qe8 {[%emt 0:00:29]} 26. Rec1 {[%emt 0:00:43]} Nc5 {[%emt 0:00:14]} 27. Qc4 {[%emt 0:00:39]} dxc3 {[%emt 0:00:37]} 28. bxc3 {[%emt 0:00:03]} Nd8 {[%emt 0:00:41]} 29. Ra1 {[%emt 0:00:43]} Nf7 {[%emt 0:00:08]} 30. Rd1 {[%emt 0:00:02]} Ra8 {[%emt 0:00:08]} 31. Qa2 {[%emt 0:00:32]} (31. Kg2 $5 {[%cal Rh2g4]}) 31... Rd8 {[%emt 0:00:10]} 32. Qc2 {[%emt 0:00:01]} Nd7 {[%emt 0:00:26]} ({Black should try} 32... Qc6 $1 $15) 33. Ng4 {[%emt 0:00:34]} h5 {[%emt 0:00:10]} 34. Ne3 {[%emt 0:00:07]} Nd6 {[%emt 0:00:07]} 35. Kg2 {[%emt 0:00:13]} Qg6 {[%emt 0:00:04]} 36. Qe2 {[%emt 0:00:43]} Rf6 {[%emt 0:00:13]} 37. Rf1 {[%emt 0:00:35]} Rdf8 {[%emt 0:00:08]} 38. Ng5 {[%emt 0:00:01]} Nf7 {[%emt 0:00:06]} 39. Nh3 $1 {[%emt 0:00:47]} Nd6 {[%emt 0:00:04]} 40. f3 {[%emt 0:00:06]} ({Don't take} 40. Ng5 Nf7 $14) 40... Nf7 {[%emt 0:00:44]} (40... R6f7 $142) 41. Nc4 {[%emt 0:00:20]} Qh6 {[%emt 0:00:07]} 42. d4 $1 {[%emt 0:01:00]} g5 {[%emt 0:00:28]} 43. Nxe5 $1 {[%emt 0:02:03]} Ndxe5 {[%emt 0:00:01]} 44. dxe5 {[%emt 0:00:00]} Rg6 {[%emt 0:00:01]} 45. hxg5 {[%emt 0:00:00]} Nxg5 {[%emt 0:00:01] [#]} 46. Qe3 $1 {[%emt 0:00:38]} h4 {[%emt 0:00:26]} 47. g4 {[%emt 0:00:29]} Qg7 {[%emt 0:00:16]} 48. Nxg5 {[%emt 0:00:44]} Rxg5 {[%emt 0:00:00] [#]} 49. Rh1 {[%emt 0:00:10]} ({Better is} 49. Kh3 $1 $16) 49... Rxg4+ $1 $11 {[%emt 0:00:24]} 50. fxg4 {[%emt 0:00:03]} Qxg4+ {[%emt 0:00:00]} 51. Kh2 {[%emt 0:00:00]} Rf3 {[%emt 0:00:05]} 52. Qxf3 $1 {[%emt 0:01:07]} Qxf3 {[%emt 0:00:00]} 53. Rhg1+ {[%emt 0:00:03]} Kh7 {[%emt 0:00:06]} 54. Raf1 {[%emt 0:00:06]} Qe2+ {[%emt 0:00:13]} 55. Kh3 {[%emt 0:00:02]} Qe3+ {[%emt 0:00:09]} 56. Kxh4 {[%emt 0:00:08]} Qh6+ {[%emt 0:00:36]} 57. Kg4 {[%emt 0:00:06]} Qe3 {[%emt 0:00:28]} 58. Rf7+ {[%emt 0:00:24]} Kg8 {[%emt 0:00:07]} 59. Rff1 {[%emt 0:00:06]} Qxe4+ $2 {[%emt 0:00:13][%mdl 8192]} (59... Kh7 $11) 60. Kh3+ $2 {[%emt 0:00:06]} (60. Kh5+ $18 Kh8 61. Rf8+ Kh7 62. Rf7+ Kh8 63. Rg5 b5 64. axb5 Qh1+ 65. Kg6) 60... Kh7 $11 {[%emt 0:00:06]} 61. Rg3 {[%emt 0:00:01]} Kh6 {[%emt 0:00:14]} 62. Kh2 {[%emt 0:00:25]} Qe2+ {[%emt 0:00:05]} (62... Qxe5 63. Rh1 Qg5 64. Kg2+ Kg6 65. Rxg5+ $18) 63. Kg1 {[%emt 0:00:01]} Qxe5 {[%emt 0:00:12]} 64. Rg2 {[%emt 0:00:02]} Qe3+ {[%emt 0:00:06]} 65. Kh1 {[%emt 0:00:01]} Kh5 {[%emt 0:00:09]} 66. c4 {[%emt 0:00:46]} Qe5 {[%emt 0:00:17]} 67. Rh2+ {[%emt 0:00:13]} Kg4 {[%emt 0:00:03]} 68. Rg2+ {[%emt 0:00:40]} Kh3 {[%emt 0:00:04]} 69. Rf3+ {[%emt 0:00:04]} Kh4 {[%emt 0:00:01]} 70. Rg8 $1 {[%emt 0:00:24]} Qe1+ {[%emt 0:00:14]} 71. Kg2 {[%emt 0:00:18]} Qe2+ {[%emt 0:00:05]} 72. Rf2 {[%emt 0:00:02]} Qe4+ {[%emt 0:00:08]} (72... Qxc4 $5 {[%cal Rc4d5]} 73. Kh1 Qc1+ 74. Kh2 Qa1 $11) 73. Kg1 {[%emt 0:00:12]} Qe1+ {[%emt 0:00:07]} 74. Rf1 {[%emt 0:00:22]} Qe3+ {[%emt 0:00:04]} 75. Kh1 {[%emt 0:00:03]} Qe4+ {[%emt 0:00:33]} 76. Kh2 {[%emt 0:00:06]} Qe2+ {[%emt 0:00:11]} (76... Qxc4 77. Rh1 Qe4 78. Kg1+ Qxh1+ 79. Kxh1 $18) 77. Kg1 {[%emt 0:00:01]} Qe3+ {[%emt 0:00:03]} 78. Rf2 {[%emt 0:00:03]} Qe1+ {[%emt 0:00:06]} 79. Kg2 {[%emt 0:00:01]} Qe4+ {[%emt 0:00:01]} 80. Kf1 {[%emt 0:00:03]} Qb1+ {[%emt 0:00:12]} 81. Kg2 {[%emt 0:00:25]} Qe4+ {[%emt 0:00:07]} 1/2-1/2

[Event "MCCT Chessable Masters 2022"]
[Site "Online"]
[Date "2022.05.16"]
[Round "15.4"]
[White "Mishra, Abhimanyu"]
[Black "Jones, Gawain C B"]
[Result "0-1"]
[ECO "C54"]
[WhiteElo "2535"]
[BlackElo "2669"]
[Annotator "TA"]
[PlyCount "96"]
[EventDate "2022.05.19"]
[EventType "tourn"]
[EventCountry "NET"]
[SourceTitle "playchess.com"]
[Source "ChessBase"]
[SourceQuality "1"]
[TimeControl "900+10"]

{[%evp 12,96,20,22,24,18,22,27,39,37,45,35,35,37,58,53,55,45,156,79,76,81,100,100,99,102,122,75,102,108,108,87,83,89,126,89,143,136,151,133,148,124,130,111,138,95,104,89,87,59,67,62,104,50,53,66,41,0,0,0,0,-1197,303,-1167,-1151,-1104,-1093,-1005,-470,-943,-920,-923,-902,-1000,-989,-976,-963,-937,-885,-1180,-1119,-29971,-29971,-29971,-29972,-29972,-12821]} 1. e4 {[%emt 0:00:00]} e5 {[%emt 0:00:00]} 2. Nf3 {[%emt 0:00:02]} Nc6 {[%emt 0:00:02]} 3. Bc4 {[%emt 0:00:02]} Nf6 {[%emt 0:00:01]} 4. d3 {[%emt 0:00:01]} Bc5 {[%emt 0:00:01]} 5. c3 {[%emt 0:00:02]} d6 {[%emt 0:00:02]} 6. O-O {[%emt 0:00:01]} O-O {[%emt 0:00:14]} 7. Re1 {[%emt 0:00:38] is recently more successful than 7.Bb3.} a5 {[%emt 0:00:15] C54: Giuoco Piano: 4 c3 Nf6, main lines with 5 d4 and 5 d3.} 8. Bg5 {[%emt 0:00:12][%cal Bc1g5,Bg5h4,Bh4g3][%mdl 32]} h6 {[%emt 0:00:08]} 9. Bh4 {[%emt 0:00:03]} Ba7 $5 {[%emt 0:00:25][%mdl 4] White has an edge. A promising side line.} 10. Na3 {[%emt 0:00:27]} Kh8 {[%emt 0:01:21]} 11. Nc2 {[%emt 0:02:03]} g5 {[%emt 0:00:18]} 12. Bg3 {[%emt 0:00:04] [#]} Be6 $146 {[%emt 0:01:05]} ({Predecessor:} 12... Nh7 13. d4 h5 14. h3 g4 15. Nh4 Qg5 16. Ne3 exd4 17. Nef5 dxc3 18. bxc3 gxh3 {½-½ (46) Petrov,M (2533)-Niemann,H (2609) Plovdiv 2021}) 13. Bb5 {[%emt 0:00:35]} Bd7 {[%emt 0:02:35]} 14. d4 {[%emt 0:02:20][%cal Rd4e5]} Nxd4 {[%emt 0:00:45]} 15. Nfxd4 {[%emt 0:01:20]} ({White should try} 15. cxd4 Bxb5 16. dxe5) 15... exd4 $16 {[%emt 0:00:03]} 16. Bxd7 {[%emt 0:00:03]} Nxd7 {[%emt 0:00:16]} 17. cxd4 {[%emt 0:01:24]} Qf6 {[%emt 0:00:49]} 18. Qd3 {[%emt 0:01:34]} h5 {[%emt 0:01:23]} 19. f3 {[%emt 0:01:04]} (19. Qb5 $142) 19... Ne5 {[%emt 0:00:22][%cal Bd7e5,Be5g6,Bg6f4][%mdl 32]} 20. Qd2 {[%emt 0:01:03]} Ng6 {[%emt 0:01:42]} 21. Bf2 {[%emt 0:00:29]} Nf4 {[%emt 0:00:30]} 22. Rad1 {[%emt 0:00:32]} d5 {[%emt 0:00:15]} 23. Ne3 {[%emt 0:00:43]} ({But not} 23. Qxa5 $6 dxe4 24. Rxe4 (24. fxe4 Bxd4 25. Bxd4 Qxd4+ 26. Nxd4 Rxa5 $11) (24. Qxc7 $2 Rac8 $19) 24... Bxd4 25. Bxd4 Qxd4+ 26. Rdxd4 (26. Rexd4 Rxa5 27. Rb4 Re8 $11) 26... Rxa5 $11) 23... Rad8 {[%emt 0:01:24]} (23... c6 $142) 24. Nf5 $1 {[%emt 0:00:32]} ({Reject} 24. Qxa5 $6 Bb6 25. Qc3 dxe4 26. fxe4 Bxd4 27. Qxc7 Rfe8 $11) 24... Rfe8 {[%emt 0:00:17]} 25. Qxa5 {[%emt 0:01:54]} Bb6 {[%emt 0:00:04]} 26. Qc3 {[%emt 0:00:10]} h4 {[%emt 0:00:28]} 27. Kh1 {[%emt 0:00:43]} Re6 {[%emt 0:00:53]} 28. h3 {[%emt 0:00:52]} Rde8 {[%emt 0:00:17][%cal Rd5e4]} 29. Qc2 {[%emt 0:00:04]} Qg6 {[%emt 0:01:09]} 30. Bg1 {[%emt 0:00:31]} Qxf5 {[%emt 0:00:31]} 31. exf5 {[%emt 0:00:03]} Rxe1 {[%emt 0:00:01]} 32. Rxe1 {[%emt 0:00:42]} (32. Qd2 $16 Rxd1 33. Qxd1) 32... Rxe1 $14 {[%emt 0:00:02]} 33. Qd2 {[%emt 0:00:14]} Re2 {[%emt 0:00:08]} 34. Qb4 {[%emt 0:00:05]} (34. Qc3 $5 {[%cal Rg1e3]} Nh5 35. Be3 Ng3+ 36. Kg1 $14) 34... Kg8 {[%emt 0:00:09] Prevents Qf8+.} 35. Bh2 {[%emt 0:00:12] Threatens to win with Bxf4.} Nd3 {[%emt 0:00:07]} 36. Qc3 {[%emt 0:00:08][%mdl 8192] [#]} (36. Qb5 $11 Re1+ 37. Bg1 Bxd4 38. Qxd3) 36... Nf2+ $1 $19 {[%emt 0:00:31]} 37. Kg1 {[%emt 0:00:02] Black must now prevent Kf1.} Nd1 $1 {[%emt 0:00:03][%csl LRb2,LRc3]} 38. Qb4 {[%emt 0:00:07] [#]} c5 $1 {[%emt 0:00:11]} 39. Qb5 {[%emt 0:00:29]} Re1+ {[%emt 0:00:05]} 40. Qf1 {[%emt 0:00:00]} Rxf1+ {[%emt 0:00:05]} 41. Kxf1 {[%emt 0:00:00]} c4 {[%emt 0:00:24]} 42. Ke2 {[%emt 0:00:12]} Nxb2 {[%emt 0:00:01]} 43. Be5 {[%emt 0:00:01]} Nd3 {[%emt 0:00:25]} 44. Bf6 {[%emt 0:00:25]} Nc1+ {[%emt 0:00:03]} 45. Kd2 {[%emt 0:00:04]} Nxa2 {[%emt 0:00:01] ...Nb4 is the strong threat.} 46. Bxg5 {[%emt 0:00:03]} Bxd4 {[%emt 0:00:02] Black mates.} 47. Bxh4 {[%emt 0:00:01]} b5 {[%emt 0:00:06][%cal Bb7b5,Bb5b4][%mdl 32]} 48. Kc2 {[%emt 0:00:24]} b4 {[%emt 0:00:02] Black used his chance.  Weighted Error Value: White=0.55/Black=0.11 (very precise)} 0-1

[Event "MCCT Chessable Masters 2022"]
[Site "Online"]
[Date "2022.05.16"]
[Round "15.5"]
[White "Shankland, Sam"]
[Black "Harikrishna, Pentala"]
[Result "1-0"]
[ECO "D38"]
[WhiteElo "2718"]
[BlackElo "2705"]
[Annotator "TA"]
[PlyCount "51"]
[EventDate "2022.05.19"]
[EventType "tourn"]
[EventCountry "NET"]
[SourceTitle "playchess.com"]
[Source "ChessBase"]
[SourceQuality "1"]
[TimeControl "900+10"]

{[%evp 12,51,34,37,25,31,29,10,45,54,52,46,50,49,95,10,12,10,0,0,33,17,25,31,33,18,23,15,27,0,291,295,373,260,418,356,403,389,471,392,1697,1681]} 1. d4 {[%emt 0:00:00]} Nf6 {[%emt 0:00:00]} 2. c4 {[%emt 0:00:02]} e6 {[%emt 0:00:02]} 3. Nf3 {[%emt 0:00:01]} d5 {[%emt 0:00:04]} 4. Nc3 {[%emt 0:00:01]} Bb4 {[%emt 0:00:06]} 5. cxd5 {[%emt 0:00:02]} exd5 {[%emt 0:00:02]} 6. Bg5 {[%emt 0:00:01]} h6 {[%emt 0:00:12]} 7. Bh4 {[%emt 0:00:01]} Bf5 {[%emt 0:01:11] 7...Bf5 is the recent fashion. D38: Queen's Gambit Declined: Ragozin Defence (4 Nf3 Bb4).} 8. Qb3 {[%emt 0:00:51]} Nc6 {[%emt 0:01:29]} 9. e3 {[%emt 0:00:02]} (9. a3 $5 {[%cal Ra3b4]} Bxc3+ 10. bxc3 $11) 9... O-O {[%emt 0:00:17] The position is equal.} (9... g5 $5 {[%cal Rg5h4]} 10. Bg3 O-O $11) 10. Bxf6 {[%emt 0:01:24]} Qxf6 {[%emt 0:00:06]} 11. Qxd5 {[%emt 0:00:01]} Rfe8 {[%emt 0:01:52] White must now prevent ...Rad8.} 12. Be2 {[%emt 0:00:22]} Be4 {[%emt 0:00:51] [#]} (12... Na5 $1 $14 13. Qb5 c5) 13. Qc4 {[%emt 0:01:56] [#]} ({Better is} 13. Qh5 $1 $16) 13... b5 $146 {[%emt 0:03:06]} ({Predecessor:} 13... Bxf3 14. gxf3 Rad8 15. O-O-O Bxc3 16. bxc3 Qd6 17. Kb1 Ne7 18. Qb3 Nd5 19. Bc4 Re7 20. Bxd5 Qxd5 21. Qxd5 Rxd5 {½-½ (45) Cerasi,U (1980)-Mouthuy,J (1690) Luxembourg 2017}) 14. Qb3 {[%emt 0:03:38] aiming for 0-0.} Bxf3 {[%emt 0:01:05]} 15. gxf3 {[%emt 0:00:02]} (15. Bxf3 $2 {[#]} Nxd4 $1 16. Qd1 Nxf3+ 17. gxf3 Bxc3+ 18. bxc3 Rad8 $19) 15... Qh4 {[%emt 0:01:03]} (15... Nxd4 $5 16. exd4 Qxf3 $14) 16. O-O-O {[%emt 0:03:54]} Qxf2 {[%emt 0:00:23]} 17. Bxb5 {[%emt 0:00:02]} Qxe3+ {[%emt 0:00:05]} 18. Rd2 $1 {[%emt 0:00:40]} ({Of course not} 18. Kb1 Bxc3 19. Rd3 (19. Qxc3 $2 Qxc3 20. bxc3 Reb8 $19) 19... Nxd4 20. Rxe3 Rxe3 $15) 18... Nxd4 {[%emt 0:01:44]} 19. Qxb4 {[%emt 0:00:03] Dancing on a razor blade.} c5 {[%emt 0:00:19]} 20. Qc4 {[%emt 0:01:03]} Red8 {[%emt 0:00:07][%mdl 8192]} (20... Nxf3 $11 {and Black stays safe.} 21. Qe2 Nxd2 22. Qxd2 Rad8 23. Qxe3 Rxe3) 21. Rhd1 $18 {[%emt 0:00:30]} Rd6 {[%emt 0:01:46]} 22. Kb1 {[%emt 0:00:38]} Rc8 {[%emt 0:00:11]} (22... Nxb5 {is a better defense.} 23. Rxd6 Nxd6 24. Rxd6 Qxf3 25. Qxc5 Qh1+ 26. Rd1 Qxh2) 23. Qd3 {[%emt 0:00:49]} Qe5 {[%emt 0:00:28]} 24. Qe4 {[%emt 0:00:33]} Qh5 {[%emt 0:00:01]} 25. Qg4 {[%emt 0:00:15]} Qe5 {[%emt 0:00:16]} (25... Qxg4 26. fxg4 Rg6) 26. Qxc8+ {[%emt 0:00:03] Weighted Error Value: White=0.21 (precise) /Black=0.58} 1-0

[Event "MCCT Chessable Masters 2022"]
[Site "Online"]
[Date "2022.05.16"]
[Round "15.6"]
[White "Vidit, Santosh Gujrathi"]
[Black "Praggnanandhaa R"]
[Result "0-1"]
[ECO "B30"]
[WhiteElo "2723"]
[BlackElo "2642"]
[Annotator "TA"]
[PlyCount "76"]
[EventDate "2022.05.19"]
[EventType "tourn"]
[EventCountry "NET"]
[SourceTitle "playchess.com"]
[Source "ChessBase"]
[SourceQuality "1"]
[TimeControl "900+10"]

{[%evp 10,76,24,4,13,-16,20,14,26,16,28,36,33,31,35,27,22,6,10,28,40,22,31,26,27,18,23,27,22,0,0,0,0,0,0,0,4,6,79,-180,163,167,362,356,337,209,571,571,573,584,554,562,517,300,677,665,700,304,308,306,302,301,311,-29995,-29996,-29996,-29997,-29997,-29998]} 1. e4 {[%emt 0:00:00]} c5 {[%emt 0:00:00]} 2. Nf3 {[%emt 0:00:03]} Nc6 {[%emt 0:00:02]} 3. Bb5 {[%emt 0:00:01]} e6 {[%emt 0:00:01]} 4. Bxc6 {[%emt 0:00:39]} bxc6 {[%emt 0:00:02]} 5. d3 {[%emt 0:00:06]} Ne7 {[%emt 0:00:03]} 6. h4 {[%emt 0:00:43]} h5 {[%emt 0:00:06] B30: Sicilian: 2...Nc6 3 Bb5, lines without ...g6.} 7. Nbd2 {[%emt 0:00:52]} f6 {[%emt 0:00:50]} 8. e5 {[%emt 0:00:18]} fxe5 {[%emt 0:00:49] The position is equal.} 9. Nxe5 {[%emt 0:00:07] With the idea Qf3.} d6 {[%emt 0:00:02]} 10. Nec4 {[%emt 0:00:11]} Nf5 {[%emt 0:01:10]} 11. Nf3 {[%emt 0:01:02]} Be7 {[%emt 0:00:29]} 12. Bg5 {[%emt 0:00:30]} e5 {[%emt 0:00:48] [#]} 13. Qd2 $146 {[%emt 0:00:40]} ({Predecessor:} 13. c3 Rb8 14. Qe2 O-O 15. O-O-O Bf6 16. Nfd2 Rb7 17. Ne4 d5 18. Bxf6 gxf6 19. Nxc5 {0-1 (48) Xu,Y (2526)-Aravindh,C (2598) Xingtai 2019}) 13... Be6 {[%emt 0:00:42]} 14. Bxe7 {[%emt 0:00:42]} Qxe7 {[%emt 0:00:05]} 15. Ng5 {[%emt 0:00:05]} O-O {[%emt 0:04:44]} 16. O-O-O {[%emt 0:00:22]} Rab8 {[%emt 0:00:36]} 17. c3 {[%emt 0:02:37]} Bd5 {[%emt 0:00:58]} 18. f3 {[%emt 0:00:16]} Nh6 {[%emt 0:01:08]} 19. Ne4 {[%emt 0:00:38]} Nf7 {[%emt 0:01:24]} 20. Ng3 {[%emt 0:03:24]} g6 {[%emt 0:00:09]} 21. Rde1 {[%emt 0:00:25]} a5 {[%emt 0:01:09]} 22. f4 {[%emt 0:00:51]} Qe6 {[%emt 0:00:34] Prevents f5.} 23. Nxa5 {[%emt 0:01:20]} Bxa2 {[%emt 0:00:10] [#]} (23... Qg4 $11 24. Ne4 Qxf4) 24. fxe5 $2 {[%emt 0:00:41][%mdl 8192]} (24. Rhf1 $1 $16 {stays on course.}) 24... dxe5 $4 {[%emt 0:01:51][%mdl 8192]} (24... Nxe5 $19 {and all is fine. Hoping for ...Qd5.} 25. c4 (25. Nxc6 $2 Rf2 $19) 25... Ra8) 25. c4 $18 {[%emt 0:00:24] Against Qd5. aiming for Ne4.} Rb4 $2 {[%emt 0:00:13]} (25... Ra8 {is a better defense.}) 26. Ne4 {[%emt 0:00:03]} Rfb8 {[%emt 0:00:15]} 27. Re2 {[%emt 0:00:44] Black must now prevent Rf1.} Kg7 $2 {[%emt 0:00:33]} (27... Qc8) 28. Rf1 {[%emt 0:00:05]} Nd6 {[%emt 0:00:33]} 29. Nxc5 {[%emt 0:00:13] Pair of Knights!} Qg4 {[%emt 0:00:12]} 30. Qe3 {[%emt 0:00:17]} Re8 {[%emt 0:00:20]} 31. Qf3 {[%emt 0:00:24]} Qd4 $2 {[%emt 0:00:08]} (31... Qxf3 32. Rxf3 e4) 32. Qf6+ {[%emt 0:00:05]} Kh7 {[%emt 0:00:01]} 33. Ne6 {[%emt 0:00:21]} (33. Nxc6 $142 Qxc5 34. Nxb4 Qxb4 35. Rxe5 Rxe5 36. Qxe5 Bxc4 37. Qe7+ (37. dxc4 Qxc4+ 38. Kd2 Qxf1 $17) (37. Qd4 Qa5 $14) 37... Kh8 38. Qf8+ (38. dxc4 Qxc4+ 39. Kd2 Qxf1 $11) 38... Kh7 39. Qe7+ (39. dxc4 Qxc4+ 40. Kb1 Qe4+ 41. Kc1 Qc4+ 42. Kb1 Qe4+ 43. Kc1 Qe3+ 44. Kd1 Qd3+ 45. Ke1 Qe3+ 46. Kd1 Qd3+ 47. Kc1 Qe3+ 48. Kc2 Qe2+ 49. Kc3 Qe3+ 50. Kb4 Qb6+ 51. Kc3 Qe3+ 52. Kc2 Qe2+ 53. Kc3 Qe3+ $11) 39... Kh8 40. Qf6+ (40. dxc4 Qxc4+ 41. Kd2 Qxf1 $11) 40... Kh7 41. Qe7+ (41. dxc4 Qxc4+ 42. Kb1 Qd3+ 43. Ka1 Qa6+ 44. Kb1 Qd3+ 45. Kc1 Qc4+ 46. Kb1 Qd3+ $11) (41. Qd4 Qa5 $14)) 33... Rxe6 {[%emt 0:00:03]} 34. Qxe6 {[%emt 0:00:01] Threatens to win with Qe7+.} Qxd3 {[%emt 0:00:02]} 35. Qe7+ {[%emt 0:00:36]} Kh6 {[%emt 0:00:03] ( -> ...Qb1+)} 36. Rf8 $4 {[%emt 0:00:56][%mdl 8192]} Qb1+ {[%emt 0:00:11][%mdl 64] [#] Deflection. Black mates.} 37. Kd2 {[%emt 0:00:02]} Rxb2+ {[%emt 0:00:11]} 38. Ke3 {[%emt 0:00:21]} Qe4+ {[%emt 0:00:01] Black used his chance.  Weighted Error Value: White=0.60/Black=0.59} 0-1